Cogmind - Beta 15 @@@ ROGUE MODE // 2025.07.11 @ 13:52:11 Player: Dingot Result: Destroyed by G-47 Trooper with Particle Gun Performance ------------- Evolutions (0) 0 Regions Visited (2) 400 Robots Destroyed (21) 105 Value Destroyed (413) 413 Prototype IDs (0) 0 Alien Tech Used (0) 0 Bonus (0) 0 TOTAL SCORE: 918 Bonus ------- None Cogmind --------- Core Integrity 0/250 Matter 262/300 Energy 99/100 System Corruption 0% Temperature Cool (9) Movement Core (50) Location -10/Mines Parts ------- > --- POWER (1) -------- (None) > --- PROPULSION (2) --- (None) > --- UTILITY (2) ------ (None) > --- WEAPON (2) ------- Ripper > --- INVENTORY (5) ---- Light Nuclear Core Light Treads Large Storage Unit Structural Scanner Peak State ------------ > --- POWER ------------ Light Nuclear Core > --- PROPULSION ------- Light Treads > --- UTILITY ---------- (None) > --- WEAPON ----------- Light Assault Rifle Light Cannon > --- INVENTORY -------- Light Ion Engine Light Treads Large Storage Unit Structural Scanner [Rating: 6] Favorites ----------- Power Light Ion Engine Engine Light Ion Engine Power Core Light Nuclear Core Propulsion Light Treads Treads Light Treads Utility None Weapon Light Assault Rifle Ballistic Gun Light Assault Rifle Ballistic Cannon Light Cannon Slashing Weapon Ripper Build | -11 -10 -10 ------- Run | Yrd Mat Min Slots Evolved . | . . . Power . | . . . Propulsion . | . . . Utility . | . . . Weapon . | . . . Parts Attached 10 | 5 3 2 Power 3 | 1 2 . Engine 2 | 1 1 . Core 1 | . 1 . Reactor . | . . . Propulsion 3 | 2 . 1 Treads 3 | 2 . 1 Leg . | . . . Wheel . | . . . Hover . | . . . Flight . | . . . Utility . | . . . Device . | . . . Storage . | . . . Processor . | . . . Hackware . | . . . Protection . | . . . Artifact . | . . . Weapon 4 | 2 1 1 Energy Gun . | . . . Energy Cannon . | . . . Ballistic Gun 2 | 2 . . Ballistic Cannon 1 | . 1 . Launcher . | . . . Special Weapon . | . . . Impact Weapon . | . . . Slashing Weapon 1 | . . 1 Piercing Weapon . | . . . Special Melee Weapon . | . . . Unidentified Prototypes . | . . . Parts Lost 8 | . 3 5 Power 3 | . 1 2 Propulsion 2 | . 1 1 Utility . | . . . Weapon 3 | . 1 2 Highest Loss Streak 4 | . 2 4 To Critical Strikes . | . . . Average Backups 3 | . 2 4 Power . | . . 1 Propulsion . | . . . Utility 1 | . 1 2 Weapon . | . . . Tool/Special . | . . . Unused Backups 3 | . . 3 Power 1 | . . 1 Propulsion . | . . . Utility 2 | . . 2 Weapon . | . . . Tool/Special . | . . . Average Slot Usage (%) 52 | . 61 30 Engine 7 | . 10 2 Core 3 | . 2 6 Treads 15 | . 20 5 Ballistic Gun 14 | . 17 6 Ballistic Cannon 9 | . 10 7 Peak Build Rating 6 | 5 6 6 Average Rating 4 | 3 4 3 On Entrance 3 | . 5 6 Naked Turns 20 | . . 20 Heaviest Build 10 | 8 10 9 Greatest Support 40 | 40 40 20 Greatest Overweight (x) . | . . . Average Overweight (x) . | . . . Largest Inventory Capacity 5 | 5 5 5 Average Capacity 5 | 5 5 5 Most Carried 5 | 5 5 5 Average Carried 3 | . 2 4 Final Capacity 5 | 5 5 5 Final Carried 5 | . 5 4 Class Distribution -------------------- 100% | Mutant Dominant Class ---------------- Mutant | -10/Materials Mutant | -10/Mines Resources | -11 -10 -10 ----------- Run | Yrd Mat Min Matter Collected 623 | 239 339 45 Remotely . | . . . Salvage Created 697 | . 624 73 Parts 43 | . 39 4 Haulers Intercepted 1 | . 1 . Recyclers Shooed 2 | . 2 . Parts Field Recycled . | . . . Retrieved Matter . | . . . Parts Self-Destructed . | . . . Prevented . | . . . Kills | -11 -10 -10 ------- Run | Yrd Mat Min Combat Hostiles Destroyed 13 | . 11 2 Melee 1 | . . 1 Guns 7 | . 7 . Cannons 5 | . 4 1 Classes Destroyed 6 | . 6 . Builder 2 | . 1 1 Hauler 1 | . 1 . Recycler 4 | . 4 . Operator 1 | . 1 . Swarmer 5 | . 5 . Grunt 8 | . 6 2 Best Kill Streak 7 | . 7 1 Combat Bots Only 4 | . 4 1 Max Kills in Single Turn 1 | . 1 1 Gunslinging . | . . . Exploded . | . . . Melee 1 | . . 1 Uniques/NPCs Destroyed . | . . . Combat | -11 -10 -10 -------- Run | Yrd Mat Min Hostile Shots Fired 145 | . 99 46 Missed 44 | . 28 16 Hits 101 | . 71 30 Projectile 101 | . 71 30 Critical Strikes 2 | . . 2 Damage Taken 1048 | . 672 376 Core 257 | . 141 116 Absorbed by Shields . | . . . Core Remaining (%) 100 | 100 . . Volleys Fired 79 | . 61 18 Largest 2 | . 2 2 Hottest 50 | . 50 50 Shots Fired 143 | . 119 24 Gun 83 | . 77 6 Cannon 60 | . 42 18 Launcher . | . . . Special . | . . . Kinetic 143 | . 119 24 Thermal . | . . . Explosive . | . . . Electromagnetic . | . . . Robot Hit Streak 10 | . 10 6 Robot Miss Streak 8 | . 6 8 Penetration Max . | . . . Secondary Targets 2 | . 2 . Max Gunslinging Chain 1 | . 1 . Shots Hit Robots 81 | . 63 18 Core Hits 37 | . 32 5 Critical Kills . | . . . Critical Parts Destroyed . | . . . Critical Strikes 1 | . 1 . Blast 1 | . 1 . Melee Attacks 3 | . . 3 Impact . | . . . Slashing 3 | . . 3 Piercing . | . . . Sneak Attacks 3 | . . 3 Combat Hostiles 1 | . . 1 Follow-up Attacks . | . . . Damage Inflicted 1238 | . 799 439 Guns 462 | . 424 38 Cannons 578 | . 375 203 Explosions . | . . . Melee 184 | . . 184 Ramming 14 | . . 14 Kinetic 1040 | . 799 241 Thermal . | . . . Explosive . | . . . Electromagnetic . | . . . Impact . | . . . Slashing 184 | . . 184 Piercing . | . . . Highest Corruption . | . . . Average Corruption . | . . . Corruption Purged . | . . . Corruption Blocked . | . . . Overload Shots . | . . . Overflow Damage 32 | . . 32 Projectiles . | . . . Explosions . | . . . Melee 32 | . . 32 Knockbacks 5 | . 2 3 Impact . | . . . Kinetic 5 | . 2 3 Secondary . | . . . Self-Inflicted Damage 6 | . . 6 Shots . | . . . Rammed 2 | . . 2 Targets Rammed 2 | . . 2 Kicked . | . . . Crushed . | . . . Highest Temperature 120 | . 38 120 Average Temperature 28 | . 10 64 Received Heat Transfer 435 | . 186 249 Siege Activations . | . . . Martial Activations . | . . . Shielding Activations . | . . . Robots Disrupted . | . . . Combat Hostiles . | . . . Robots Corrupted . | . . . Combat Hostiles . | . . . Parts Fried . | . . . Impact Corruptions . | . . . Robots Melted . | . . . Combat Hostiles . | . . . Parts Melted . | . . . Heat Transferred . | . . . Parts Sabotaged . | . . . Parts Stolen . | . . . Parts Stripped . | . . . Power Chain Reactions . | . . . Alert | -11 -10 -10 ------- Run | Yrd Mat Min Maximum Alert Level . | . . . Low Security (%) 100 | 100 100 100 Level 1 . | . . . Level 2 . | . . . Level 3 . | . . . Level 4 . | . . . Level 5 . | . . . High Security . | . . . Max Security . | . . . Peak Influence 98 | . 98 80 Initial 3 | . . 3 Average 42 | . 56 18 Influence Increases 461 | . 331 130 Destroy 0b10 Robot/C 260 | . 220 40 Destroy 0b10 Robot/NC 40 | . 35 5 Destroy Leader 52 | . 42 10 Successful Hack 18 | . 18 . Destroy Structure 1 | . 1 . Lose Combat Pursuer 90 | . 15 75 Influence Decreases 401 | . 322 79 Entered New Map 6 | . . 6 Time Decay 355 | . 292 63 Lost Part 40 | . 30 10 Squads Dispatched 1 | . 1 . Investigation . | . . . Extermination . | . . . Reinforcement 1 | . 1 . Assault . | . . . Garrison . | . . . Intercept . | . . . Searches Triggered . | . . . Construction Impeded . | . . . Haulers Reinforced . | . . . Active Scanning Responses . | . . . Cargo Convoy Interrupts . | . . . Stealth | -11 -10 -10 --------- Run | Yrd Mat Min Distress Signals 2 | . 2 . Communications Jammed . | . . . Distress Signals . | . . . Times Spotted 35 | . 27 8 Peak Tracking Total 5 | . 5 5 Tactical Retreats 3 | . 1 2 Traps | -11 -10 -10 ------- Run | Yrd Mat Min Traps Triggered . | . . . Indirectly . | . . . Trap Hack Attempts . | . . . Triggered . | . . . Disarmed . | . . . Reprogrammed . | . . . Reused . | . . . Traps Extracted . | . . . Installed . | . . . Triggered . | . . . Machines | -11 -10 -10 ---------- Run | Yrd Mat Min Machines Disabled . | . . . Max in Single Turn . | . . . Machines Repaired . | . . . Machines Dismantled . | . . . Machines Sabotaged . | . . . Overloaded Fab Kills . | . . . Hacking | -11 -10 -10 --------- Run | Yrd Mat Min Machines Accessed 3 | . 3 . Terminals 3 | . 3 . Fabricators . | . . . Repair Stations . | . . . Recycling Units . | . . . Scanalyzers . | . . . Garrison Access . | . . . Total Hacks 19 | . 19 . Successful 5 | . 5 . Failed 14 | . 14 . Catastrophic 3 | . 3 . Database Lockouts . | . . . Manual 14 | . 14 . Terminals 19 | . 19 . Fabricators . | . . . Repair Stations . | . . . Recycling Units . | . . . Scanalyzers . | . . . Garrison Access . | . . . Terminal Hacks 3 | . 3 . Branch Access Points 1 | . 1 . Reprogram Traps 1 | . 1 . Hauler Manifests 1 | . 1 . Fabricator Hacks . | . . . Repair Station Hacks . | . . . Recycling Unit Hacks . | . . . Scanalyzer . | . . . Garrison Access Hacks . | . . . Unauthorized Hacks 2 | . 2 . Terminals 2 | . 2 . Botnet 2 | . 2 . Fabricators . | . . . Repair Stations . | . . . Recycling Units . | . . . Scanalyzers . | . . . Garrison Access . | . . . Data Cores Recovered . | . . . Used . | . . . Hacking Detections 3 | . 3 . Full Trace Events . | . . . Feedback Events . | . . . Feedback Blocked . | . . . Robot Schematics Acquired . | . . . Robots Built . | . . . Authchips . | . . . Time . | . . . Total Robot Build Rating . | . . . Part Schematics Acquired . | . . . Parts Built . | . . . Authchips . | . . . Time . | . . . Total Part Build Rating . | . . . Parts Repaired . | . . . Time . | . . . Parts Recycled . | . . . Recycled Matter . | . . . Retrieved Matter . | . . . Retrieved Components . | . . . Parts Scanalyzed . | . . . Part Schematics Acquired . | . . . Parts Damaged . | . . . Bothacking | -11 -10 -10 ------------ Run | Yrd Mat Min Used RIF Installer . | . . . Robots Hacked . | . . . Non-combat . | . . . Combat . | . . . Robot Hacks Applied . | . . . Relay Couplers Released . | . . . Fabnet Peak Effective % . | . . . Robots Rewired . | . . . Allies Hacked . | . . . Hacks Repelled . | . . . Allies | -11 -10 -10 -------- Run | Yrd Mat Min Total Allies . | . . . Largest Group . | . . . Highest-Rated Group . | . . . Highest-Rated Ally . | . . . Total Orders . | . . . Ally Attacks . | . . . Total Damage . | . . . Kills . | . . . Allies Corrupted . | . . . Allies Melted . | . . . Intel | -11 -10 -10 ------- Run | Yrd Mat Min Active Infowar (turns) . | . . . Robot Analysis Total . | . . . Derelict Logs Recovered . | . . . Drone Launches . | . . . Drone Recoveries . | . . . Exploration | -11 -10 -10 ------------- Run | Yrd Mat Min Turns Passed 987 | 64 662 261 Spaces Moved 601 | 44 300 257 Core 216 | 15 . 201 Treads 385 | 29 300 56 Legs . | . . . Wheels . | . . . Hover . | . . . Flight . | . . . Fastest Speed 50 | 50 160 50 Average Speed 120 | 122 160 73 Slowest Speed 160 | 160 160 160 Overloaded Moves . | . . . Propulsion Burnouts . | . . . Robots Hopped . | . . . Potential Cave-ins . | . . . Cave-ins Triggered . | . . . Exploration Rate (%) 37 | 4 51 56 Regions Visited 2 Branch Regions 1 Pre-discovered Areas . | . . . Known Exits Taken 1 | . 1 . Unknown Exits Taken 1 | 1 . . Scrap Searched . | . . . Spaces Dug . | . . . Terrain Destroyed . | . . . Melee . | . . . Projectile . | . . . AOE . | . . . Terrain Rammed . | . . . Walls Destroyed . | . . . Machines Disabled . | . . . Actions | -11 -10 -10 --------- Run | Yrd Mat Min Total 727 | 54 372 301 Wait 17 | 1 . 16 Move 599 | 43 299 257 Hop . | . . . Pick Up 13 | 5 7 1 Fast Attach . | . . . Attach 10 | 5 2 3 Detach 1 | . . 1 Swap 3 | . 3 . Drop . | . . . Fire 79 | . 61 18 Melee 3 | . . 3 Ram 2 | . . 2 Kick . | . . . Crush . | . . . Escape Stasis . | . . . Rewire . | . . . Trap . | . . . Miscellaneous . | . . . Route ------- -11/Scrapyard -10/Materials (discovered 3 exits: [*Mat] / *Min x2) -10/Mines (discovered 1 exit: [*Mat]) History --------- Turn | Location | Event 7 | -11/Scrapyard | Discovered new exit (range 16) 65 | -11/Scrapyard | Entered Materials 320 | -10/Materials | Build established: Mutant 321 | -10/Materials | Identified exit to Mines 572 | -10/Materials | Core integrity fell below 50% 640 | -10/Materials | Discovered new exit (range 7) 727 | -10/Materials | Entered Mines 730 | -10/Mines | Met a Derelict bent on vengeance 844 | -10/Mines | Core integrity fell below 20% 860 | -10/Mines | Discovered new exit (range 12) 886 | -10/Mines | Lost 4 parts (1p1n2w) 918 | -10/Mines | A weapon hastily lodged in a ceiling crevice suddenly fell to the ground 988 | -10/Mines | Destroyed by G-47 Trooper with Particle Gun Last Messages --------------- 00846_ G-34 Mercenary knocked back. 00855_ K-01 Serf collects debris. 00855_ Lgt. Cannon destroyed. 00860_ EXIT=FOUND 00871_ K-01 Serf collects debris. 00902_ Slammed into U-05 Engineer. 00910_ Lgt. Ion Engine destroyed. 00918_ A Ripper has been hastily shoved under some rubble with a note attached: "Rip and tear!" 00919_ Acquired Ripper. 00932_ Sneak attack on U-05 Engineer. 00932_ U-05 Engineer destroyed. 00935_ Acquired 24 matter. 00957_ Sneak attack on G-34 Mercenary. 00957_ G-34 Mercenary destroyed. 00959_ Acquired 21 matter. 00968_ K-01 Serf collects debris. 00981_ Sneak attack on K-01 Serf. 00981_ Destroyed Wheel. Map ----- +----------------------------------------------------+ | ??????????????????????????????????? | | ??????????????????????????????????? | | ??????????????????????????????????? | | ??????????????????????????????????? | | ??????????????????????????????????? | | ??????????????????????????????????? | | ??????????????????????????????????? | | ??????????????????????????????????? | | ??????????????????????????????????? | | ??????????????????????????????????? | | ??# ?????????????????????????????? | | ??? ????????????????????????????? | | ???? ???????????????????????????? | | ????? ???????????????????????????? | | ?????# ##?????????????????????????? | | ????## #????????????????????????? | | ???## t????????????????????????? | | ???# #???##################??? | | ???# ##??# #??? | | ???# #### ############# #??? | | ???# #???????????# #??? | | ???# #??????????## ##?? | | ???# ####?????????## ##? | | ???# #???????????## ## | | ???# k ##??????????## # | | ???## @##???????????# | | ????## g#???????????## | | ?????#### g#?????????### | | ????????# #????????## ## | | ????????# #????????# ###### | | ????????# #????????# #????? | | ????????# #????????# ##???? | | ???????## #####????## ##### | | ???????# ## ##????### # | | ???????# ###????## | | ???????## ######## | | ????????## ## | | ?????????##### ## ### | | ??############ #### ## ##??# | | ??# # ##?##* # #????# | | ??# # ###?## ! #????? | | ??? # ##### ##????? | | ????""" """ | ! #?????? | | ????""" """ ###### #?????? | | ??# """ """ ####????# #?????? | | ??# #???????## #?????? | | ??# """ """ #????????### ##?????? | | ??? """ """ #??????????####??????? | | ??# """ """ #????????????????????? | | ??# #????????????????????? | +----------------------------------------------------+ Best States ------------- Heat Dissipation 25 Energy Generation 14 Energy Capacity 250 Matter Stores 300 Matter Capacity 300 Sight Range 16 Terrain Scan Density 10 Evasion (%) 50 Recoil Reduction 2 Item Schematics ----------------- None Robot Schematics ------------------ None Fabricated ------------ Nothing Repaired ---------- Nothing Alien Tech Used ----------------- None Achievements -------------- None Challenges ------------ None Game ------ Seed RagnarokElectronFlamer Manual? 0 Play Time 00:13:49 Cumulative 19.3 hours Start 2025.07.11 @ 13:40:38 End 2025.07.11 @ 13:52:11 Sessions 1 Manual Loads 0 Difficulty Rogue Special Mode None Game No. 30 Rogue 30 Adventurer 0 Explorer 0 Win Type - Total 0 Types 0/0/0/0/0/0/0/0/0/0 Lore% 17 Gallery% 18 Achievement% 25 Wizard Run 0 Options --------- Layout 1 ASCII 0 Keyboard 0 Movement Mouse Keybinds 0 Fullscreen 1 Font 24/Smallcaps Map View 50x35 Zoom Use 0% Tactical HUD 1 Map Filters NONE Filters NONE Steam 1 RUN: c094b606-37a8-4561-aa6f-ca8673d2a221